Cogmind - Beta 15 @@@ ROGUE MODE // 2025.05.28 @ 20:13:16 Player: KeKe Result: Destroyed by G-47 Trooper with Particle Gun Performance ------------- Evolutions (0) 0 Regions Visited (1) 200 Robots Destroyed (26) 130 Value Destroyed (473) 473 Prototype IDs (0) 0 Alien Tech Used (0) 0 Bonus (0) 0 TOTAL SCORE: 803 Bonus ------- None Cogmind --------- Core Integrity 0/250 Matter 268/300 Energy 99/100 System Corruption 0% Temperature Cool (9) Movement Core (100) Ox1 Location -10/Materials Parts ------- > --- POWER (1) -------- (None) > --- PROPULSION (2) --- (None) > --- UTILITY (2) ------ Structural Scanner ECM Suite > --- WEAPON (2) ------- Hammer > --- INVENTORY (5) ---- Improved Heat Sink Sensor Array Improved Terrain Scanner Tractor Beam Peak State ------------ > --- POWER ------------ Light Ion Engine > --- PROPULSION ------- Aluminum Leg Aluminum Leg > --- UTILITY ---------- Structural Scanner Hacking Suite > --- WEAPON ----------- Light Assault Rifle Hammer > --- INVENTORY -------- Improved Heat Sink Sensor Array Improved Terrain Scanner ECM Suite Tractor Beam [Rating: 9] Favorites ----------- Power Ion Engine Engine Ion Engine Propulsion Compact Wheel Treads Light Treads Leg Aluminum Leg Wheel Compact Wheel Utility Huge Storage Unit Device Structural Scanner Storage Huge Storage Unit Hackware Hacking Suite Weapon Light Assault Rifle Ballistic Gun Light Assault Rifle Impact Weapon Hammer Build | -11 -10 ------- Run | Yrd Mat Slots Evolved . | . . Power . | . . Propulsion . | . . Utility . | . . Weapon . | . . Parts Attached 18 | 6 12 Power 2 | 1 1 Engine 2 | 1 1 Core . | . . Reactor . | . . Propulsion 7 | 2 5 Treads 2 | 2 . Leg 3 | . 3 Wheel 2 | . 2 Hover . | . . Flight . | . . Utility 5 | 1 4 Device 2 | . 2 Storage 2 | 1 1 Processor . | . . Hackware 1 | . 1 Protection . | . . Artifact . | . . Weapon 4 | 2 2 Energy Gun . | . . Energy Cannon . | . . Ballistic Gun 3 | 2 1 Ballistic Cannon . | . . Launcher . | . . Special Weapon . | . . Impact Weapon 1 | . 1 Slashing Weapon . | . . Piercing Weapon . | . . Special Melee Weapon . | . . Unidentified Prototypes . | . . Parts Lost 10 | . 10 Power 2 | . 2 Propulsion 4 | . 4 Utility 1 | . 1 Weapon 3 | . 3 Highest Loss Streak 5 | . 5 To Critical Strikes 1 | . 1 Average Backups 7 | 1 7 Power . | . . Propulsion 1 | . 1 Utility 4 | . 5 Weapon . | . . Tool/Special . | . . Unused Backups 5 | . 5 Power . | . . Propulsion . | . . Utility 5 | . 5 Weapon . | . . Tool/Special . | . . Average Slot Usage (%) 81 | . 81 Engine 13 | . 13 Treads 2 | . 2 Leg 7 | . 7 Wheel 14 | . 14 Device 4 | . 4 Storage 9 | . 9 Hackware 1 | . 1 Ballistic Gun 22 | . 22 Impact Weapon 4 | . 4 Peak Build Rating 9 | 6 9 Average Rating 6 | 4 6 On Entrance 3 | . 6 Naked Turns . | . . Heaviest Build 88 | 13 88 Greatest Support 40 | 40 40 Greatest Overweight (x) 5 | . 5 Average Overweight (x) 1 | . 2 Largest Inventory Capacity 25 | 8 25 Average Capacity 16 | 7 18 Most Carried 12 | 5 12 Average Carried 7 | 1 7 Final Capacity 8 | 8 5 Final Carried 5 | 5 4 Class Distribution -------------------- 71% | Mutant 25% | Scavenger-Mutant Dominant Class ---------------- Mutant | -10/Materials Resources | -11 -10 ----------- Run | Yrd Mat Matter Collected 632 | 320 312 Remotely . | . . Salvage Created 792 | 144 648 Parts 54 | 10 44 Haulers Intercepted . | . . Recyclers Shooed 4 | . 4 Parts Field Recycled . | . . Retrieved Matter . | . . Parts Self-Destructed . | . . Prevented . | . . Kills | -11 -10 ------- Run | Yrd Mat Combat Hostiles Destroyed 12 | . 12 Melee 2 | . 2 Guns 10 | . 10 Classes Destroyed 8 | 3 5 Worker 3 | 1 2 Builder 1 | . 1 Tunneler 3 | 3 . Recycler 3 | 1 2 Operator 2 | . 2 Watcher 2 | . 2 Swarmer 3 | . 3 Grunt 9 | . 9 Best Kill Streak 7 | 3 7 Combat Bots Only 3 | . 3 Max Kills in Single Turn 1 | 1 1 Gunslinging . | . . Exploded . | . . Melee 1 | . 1 Uniques/NPCs Destroyed . | . . Combat | -11 -10 -------- Run | Yrd Mat Hostile Shots Fired 122 | . 122 Missed 29 | . 29 Hits 93 | . 93 Projectile 93 | . 93 Critical Strikes 3 | . 3 Damage Taken 1072 | . 1072 Core 253 | . 253 Absorbed by Shields . | . . Core Remaining (%) 100 | 100 . Volleys Fired 114 | 15 99 Largest 2 | 2 2 Hottest 40 | 40 40 Shots Fired 174 | 30 144 Gun 174 | 30 144 Cannon . | . . Launcher . | . . Special . | . . Kinetic 174 | 30 144 Thermal . | . . Explosive . | . . Electromagnetic . | . . Robot Hit Streak 13 | 6 13 Robot Miss Streak 5 | 1 5 Penetration Max . | . . Secondary Targets 1 | . 1 Max Gunslinging Chain 1 | . 1 Shots Hit Robots 122 | 18 104 Core Hits 46 | 6 40 Critical Kills . | . . Critical Parts Destroyed 1 | 1 . Critical Strikes 1 | 1 . Destroy 1 | 1 . Melee Attacks 13 | . 13 Impact 13 | . 13 Slashing . | . . Piercing . | . . Sneak Attacks . | . . Combat Hostiles . | . . Follow-up Attacks . | . . Damage Inflicted 1356 | 187 1169 Guns 1086 | 187 899 Cannons . | . . Explosions . | . . Melee 270 | . 270 Ramming . | . . Kinetic 1086 | 187 899 Thermal . | . . Explosive . | . . Electromagnetic . | . . Impact 270 | . 270 Slashing . | . . Piercing . | . . Highest Corruption . | . . Average Corruption . | . . Corruption Purged . | . . Corruption Blocked . | . . Overload Shots . | . . Overflow Damage 11 | . 11 Projectiles . | . . Explosions . | . . Melee 11 | . 11 Knockbacks 2 | . 2 Impact 2 | . 2 Kinetic . | . . Secondary . | . . Self-Inflicted Damage . | . . Shots . | . . Rammed . | . . Targets Rammed . | . . Kicked . | . . Crushed . | . . Highest Temperature 22 | . 22 Average Temperature 8 | . 8 Received Heat Transfer 519 | . 519 Siege Activations . | . . Martial Activations . | . . Shielding Activations . | . . Robots Disrupted . | . . Combat Hostiles . | . . Robots Corrupted . | . . Combat Hostiles . | . . Parts Fried . | . . Impact Corruptions 1 | . 1 Robots Melted . | . . Combat Hostiles . | . . Parts Melted . | . . Heat Transferred . | . . Parts Sabotaged . | . . Parts Stolen . | . . Parts Stripped . | . . Power Chain Reactions . | . . Alert | -11 -10 ------- Run | Yrd Mat Maximum Alert Level . | . . Low Security (%) 100 | 100 100 Level 1 . | . . Level 2 . | . . Level 3 . | . . Level 4 . | . . Level 5 . | . . High Security . | . . Max Security . | . . Peak Influence 133 | 10 133 Initial . | . . Average 37 | 1 43 Influence Increases 435 | 25 410 Destroy 0b10 Robot/C 240 | . 240 Destroy 0b10 Robot/NC 70 | 25 45 Destroy Leader 64 | . 64 Successful Hack 15 | . 15 Destroy Structure 1 | . 1 Lose Combat Pursuer 45 | . 45 Influence Decreases 370 | 25 345 Time Decay 292 | 25 267 Lost Part 78 | . 78 Squads Dispatched 3 | . 3 Investigation 1 | . 1 Extermination . | . . Reinforcement 2 | . 2 Assault . | . . Garrison . | . . Intercept . | . . Searches Triggered . | . . Construction Impeded . | . . Haulers Reinforced . | . . Active Scanning Responses . | . . Cargo Convoy Interrupts . | . . Stealth | -11 -10 --------- Run | Yrd Mat Distress Signals 2 | . 2 Communications Jammed . | . . Distress Signals . | . . Times Spotted 25 | . 25 Peak Tracking Total 5 | . 5 Tactical Retreats 2 | . 2 Traps | -11 -10 ------- Run | Yrd Mat Traps Triggered 1 | . 1 Indirectly . | . . Trap Hack Attempts . | . . Triggered . | . . Disarmed . | . . Reprogrammed . | . . Reused . | . . Traps Extracted . | . . Installed . | . . Triggered . | . . Machines | -11 -10 ---------- Run | Yrd Mat Machines Disabled . | . . Max in Single Turn . | . . Machines Repaired . | . . Machines Dismantled . | . . Machines Sabotaged . | . . Overloaded Fab Kills . | . . Hacking | -11 -10 --------- Run | Yrd Mat Machines Accessed 4 | . 4 Terminals 4 | . 4 Fabricators . | . . Repair Stations . | . . Recycling Units . | . . Scanalyzers . | . . Garrison Access . | . . Total Hacks 12 | . 12 Successful 9 | . 9 Failed 3 | . 3 Catastrophic . | . . Database Lockouts . | . . Manual 9 | . 9 Terminals 12 | . 12 Fabricators . | . . Repair Stations . | . . Recycling Units . | . . Scanalyzers . | . . Garrison Access . | . . Terminal Hacks 4 | . 4 Robot Analysis 1 | . 1 Emergency Access Points 1 | . 1 Alert Level 1 | . 1 Locate Traps 1 | . 1 Fabricator Hacks . | . . Repair Station Hacks . | . . Recycling Unit Hacks . | . . Scanalyzer . | . . Garrison Access Hacks . | . . Unauthorized Hacks 5 | . 5 Terminals 5 | . 5 Track 1 | . 1 Botnet 3 | . 3 Operators 1 | . 1 Fabricators . | . . Repair Stations . | . . Recycling Units . | . . Scanalyzers . | . . Garrison Access . | . . Data Cores Recovered . | . . Used . | . . Hacking Detections 2 | . 2 Full Trace Events 1 | . 1 Feedback Events . | . . Feedback Blocked . | . . Robot Schematics Acquired . | . . Robots Built . | . . Authchips . | . . Time . | . . Total Robot Build Rating . | . . Part Schematics Acquired . | . . Parts Built . | . . Authchips . | . . Time . | . . Total Part Build Rating . | . . Parts Repaired . | . . Time . | . . Parts Recycled . | . . Recycled Matter . | . . Retrieved Matter . | . . Retrieved Components . | . . Parts Scanalyzed . | . . Part Schematics Acquired . | . . Parts Damaged . | . . Bothacking | -11 -10 ------------ Run | Yrd Mat Used RIF Installer . | . . Robots Hacked . | . . Non-combat . | . . Combat . | . . Robot Hacks Applied . | . . Relay Couplers Released . | . . Fabnet Peak Effective % . | . . Robots Rewired . | . . Allies Hacked . | . . Hacks Repelled . | . . Allies | -11 -10 -------- Run | Yrd Mat Total Allies . | . . Largest Group . | . . Highest-Rated Group . | . . Highest-Rated Ally . | . . Total Orders . | . . Ally Attacks . | . . Total Damage . | . . Kills . | . . Allies Corrupted . | . . Allies Melted . | . . Intel | -11 -10 ------- Run | Yrd Mat Active Infowar (turns) 329 | . 329 Structural 329 | . 329 ECM 1 | . 1 Robot Analysis Total 1 | . 1 Derelict Logs Recovered . | . . Drone Launches . | . . Drone Recoveries . | . . Exploration | -11 -10 ------------- Run | Yrd Mat Turns Passed 1203 | 154 1049 Spaces Moved 582 | 63 519 Core 2 | 2 . Treads 75 | 61 14 Legs 190 | . 190 Wheels 315 | . 315 Hover . | . . Flight . | . . Fastest Speed 50 | 50 90 Average Speed 136 | 156 134 Slowest Speed 175 | 160 175 Overloaded Moves . | . . Propulsion Burnouts . | . . Robots Hopped . | . . Potential Cave-ins . | . . Cave-ins Triggered . | . . Exploration Rate (%) 43 | 5 82 Regions Visited 1 Branch Regions . Pre-discovered Areas . | . . Known Exits Taken . | . . Unknown Exits Taken 1 | 1 . Scrap Searched . | . . Spaces Dug . | . . Terrain Destroyed . | . . Melee . | . . Projectile . | . . AOE . | . . Terrain Rammed . | . . Walls Destroyed . | . . Machines Disabled . | . . Actions | -11 -10 --------- Run | Yrd Mat Total 812 | 88 724 Wait 66 | . 66 Move 581 | 62 519 Hop . | . . Pick Up 12 | 5 7 Fast Attach 10 | 6 4 Attach 7 | . 7 Detach . | . . Swap 3 | . 3 Drop 6 | . 6 Fire 114 | 15 99 Melee 13 | . 13 Ram . | . . Kick . | . . Crush . | . . Escape Stasis . | . . Rewire . | . . Trap . | . . Miscellaneous . | . . Route ------- -11/Scrapyard -10/Materials (discovered 5 exits: [*Mat x3] / [*Min x2]) History --------- Turn | Location | Event 10 | -11/Scrapyard | Discovered new exit (range 15) 155 | -11/Scrapyard | Entered Materials 317 | -10/Materials | Build established: Mutant 441 | -10/Materials | Discovered new exit (range 4) 604 | -10/Materials | Discovered new exit (range 13) 761 | -10/Materials | Discovered new exit (range 16) 853 | -10/Materials | Lost 4 parts (1p1n2w) 911 | -10/Materials | Discovered new exit (range 4) 1038 | -10/Materials | Discovered new exit (range 16) 1162 | -10/Materials | Core integrity fell below 50% 1171 | -10/Materials | Build established: Scavenger-Mutant 1192 | -10/Materials | Core integrity fell below 20% 1204 | -10/Materials | Destroyed by G-47 Trooper with Particle Gun Last Messages --------------- Downloading analysis... G-34 Mercenary Tier: 1 G-series grunts serve as low-level frontline combat units, of sturdy construction but with fairly weak armament. Internal systems are not as protected as they could be, to enable rapid repair in the field, but this also makes them somewhat susceptible to additional damage from electromagnetic attacks. Grunts patrol in groups, or sometimes operate alone as hauler escorts to protect those with more valuable cargo. 01167_ Lgt. Assault Rifle destroyed. 01169_ W-16 Scout destroyed. 01172_ Lgt. Ion Engine destroyed. 01173_ Hacking Suite destroyed. 01179_ Aluminum Leg destroyed. 01181_ G-34 Mercenary knocked back. 01184_ Destroyed Ion Engine. 01184_ G-34 Mercenary system corrupted by crushing effect. 01189_ Aluminum Leg destroyed. 01192_ G-34 Mercenary knocked back. 01195_ G-34 Mercenary destroyed. Map ----- +----------------------------------------------------+ | ???????????????????# ! #???# #????????## | | ???????????????????# !! """ #???# #????????# | | ???????????????????# """ #???# ########## | | ???????????????????# """ #???# % + | | ???????????????????# #???# ##+########## | | ???????????#############+######### # = #?# | | ???????????# "[ #?# | | ???????????# ########!# * #?# | | ???????????# #??????# # #?# | | ???????????################??????# ###########?## | | ???????????????????????????????###+#######??????? | | ???????????????????????????????# ######## | | ???????????????????????????????# """ """ + ! | | ????????????????????????## ????+ """ """ ######## | | ????????????????????????## ????# """ """ # | | ?????????? + ???????????## ????# # | | ?????????? # ???????????##!????# # | | ????? # # ???????????## ???# # | | ???## ###### ? + ???# # | | ???## ########## #######+### | | ???## #######+####### # | | ???## # | | ???## T = T + | | ???######## *%![ ######## | | ??????##### ## ##g############ ##?????? | | ??????##### ? ########[%@ ^ ###### ###?????? | | ?????? ?^+ """" # =^ ##?### ###?????? | | ??????? ??????????? #^ ^^^ ##??## ##??????? | | ?##### ?????? # """"""" ###### ###?????? | | ?######/######?????? # """"""" ###### ## ?????? | | ?## ##?????? # """"""" ###" # ?????? | | ?## ##?????? # """"""" ###"" # ????"" | | ?## ##?????? # """"??? ###|| # ????"" | | ?## [! ##?????? ###????????##"" < # ??? | | ?## [! ##?????? ###????????##!! # ?? ""? | | ?## ! ##??????????????????##"" # ?| "?? | | ?## ##??????????????????##" # ??? | | ?## ##?????????############## ## | | ?###+#+#######?????????############## ##+###### | | ??## #######?????????## """ """ # | | ??## ##??????????????## """"""""" # | | ??## ################## """"" # | | ??## ################## # ######### | | ??## + ! # % #* | | ??## ################## = + + % ! """ | | ??## ########### ## % # # """ | | ??## ##???????## ##########/### # """ | | ??## ##???????## T ##########!### # " " """ | | ??## # ???????## ##??###### ### # "Y" """ | | ??## # ???????## ##??##### "T" # """ | +----------------------------------------------------+ Best States ------------- Heat Dissipation 25 Energy Generation 10 Energy Capacity 250 Matter Stores 300 Matter Capacity 300 Sight Range 16 Terrain Scan Density 10 Evasion (%) 55 Recoil Reduction 2 Offensive Hacking 10 Item Schematics ----------------- None Robot Schematics ------------------ None Fabricated ------------ Nothing Repaired ---------- Nothing Alien Tech Used ----------------- None Achievements -------------- None Challenges ------------ None Game ------ Seed ForceRegenerativeArticulator Manual? 0 Play Time 00:14:30 Cumulative 99.4 hours Start 2025.05.28 @ 19:44:22 End 2025.05.28 @ 20:13:16 Sessions 1 Manual Loads 0 Difficulty Rogue Special Mode None Game No. 95 Rogue 95 Adventurer 0 Explorer 0 Win Type - Total 1 Types 1/0/0/0/0/0/0/0/0/0 Lore% 52 Gallery% 44 Achievement% 44 Wizard Run 0 Options --------- Layout 0 ASCII 0 Keyboard 0 Movement Mouse Keybinds 0 Fullscreen 2 Font 18/X11 Map View 76x50 Zoom Use 0% Tactical HUD 1 Map Filters NONE Filters NONE Steam 1 RUN: 00a475df-e7cf-475d-8da8-7ad827035ad1